bitfinex/quotes_SOLUSD_20240808
["timestamp","ask_amount","ask_price","bid_price","bid_amount"]
[1723113200537,45.34,153.83,153.71,21.8388]
[1723113200728,51.5012,153.82,153.71,21.8388]
[1723113201049,0.17,153.81,153.71,21.8388]
[1723113201351,45.17,153.81,153.71,21.8388]
[1723113201851,0.17,153.81,153.71,21.8388]
[1723113202037,0.17,153.81,153.72,20.0]
[1723113203035,0.17,153.81,153.71,21.8388]
[1723113203036,6.6719,153.81,153.71,21.8388]
[1723113203244,0.17,153.81,153.71,21.8388]
[1723113203556,6.6717,153.81,153.71,21.8388]
[1723113203750,45.0,153.8,153.67,22.6703]
[1723113203940,0.17,153.79,153.67,22.6703]
[1723113204769,6.6724,153.79,153.67,22.6703]
[1723113204930,45.0,153.78,153.67,22.6703]
[1723113205130,6.5041,153.75,153.67,16.4159]
[1723113205335,45.17,153.74,153.67,16.4159]
[1723113205532,45.0,153.74,153.67,16.4159]
[1723113205761,45.0,153.74,153.63,6.275]
[1723113205762,45.0,153.74,153.63,21.4525]
[1723113205942,0.17,153.73,153.63,21.4525]
[1723113206534,0.17,153.73,153.58,22.1257]
[1723113207933,0.17,153.73,153.6,36.53]
[1723113208147,0.17,153.73,153.61,0.62301198]
[1723113208428,0.17,153.73,153.62,0.17]
[1723113208949,0.17,153.73,153.62,0.34]
[1723113209149,0.17,153.73,153.62,20.34]
[1723113209728,0.17,153.73,153.62,20.17]
[1723113209932,0.17,153.73,153.62,0.17]
[1723113210943,6.675,153.73,153.62,0.17]
[1723113211144,45.0,153.72,153.58,22.1257]
[1723113211455,0.17,153.73,153.58,23.3244309]
[1723113212340,0.17,153.73,153.59,65.34]
[1723113212539,6.5066,153.69,153.58,22.1257]
[1723113212744,0.34,153.73,153.58,22.1257]
[1723113212745,0.17,153.68,153.58,22.1257]
[1723113212941,6.5054,153.72,153.58,22.1257]
[1723113213147,45.0,153.71,153.58,22.1257]
[1723113213447,0.17,153.7,153.58,22.1257]
[1723113213856,0.17,153.7,153.59,48.68]
[1723113215056,0.17,153.7,153.59,48.18]
[1723113215242,0.17,153.7,153.54,6.76690765]
[1723113215243,49.9023,153.69,153.56,28.51]
[1723113215445,0.17,153.68,153.56,28.51]
[1723113215643,45.17,153.68,153.56,28.51]
[1723113216451,45.17,153.68,153.58,28.51]
[1723113216836,45.17,153.68,153.59,0.17]
[1723113217456,51.677,153.68,153.59,0.17]
[1723113218251,45.17,153.68,153.59,0.17]
[1723113219061,51.677,153.68,153.59,0.17]
[1723113219547,45.17,153.68,153.59,0.17]
[1723113220449,51.677,153.68,153.59,0.17]
[1723113221150,6.5075,153.67,153.59,0.17]
[1723113221358,45.17,153.66,153.56,28.51]
[1723113221660,51.6782,153.66,153.56,28.51]
[1723113222036,45.17,153.66,153.56,28.51]
[1723113222644,0.17,153.66,153.56,28.51]
[1723113222945,45.0,153.67,153.58,28.51]
[1723113223145,45.17,153.68,153.58,28.51]
[1723113223757,45.17,153.68,153.59,0.17]
[1723113224566,45.17,153.68,153.6,28.51]
[1723113225178,21.7189,153.73,153.62,28.51]
[1723113225467,21.7189,153.73,153.64,28.51]
[1723113226137,6.5058,153.71,153.6,28.51]
[1723113226339,6.5062,153.7,153.61,20.17]
[1723113226852,45.0,153.69,153.61,20.17]
[1723113227156,56.7339,153.73,153.61,20.17]
[1723113227337,45.17,153.72,153.61,20.17]
[1723113227664,51.6755,153.72,153.61,20.17]
[1723113228239,45.17,153.72,153.61,20.17]
[1723113229638,6.5067,153.69,153.61,20.17]
[1723113229842,6.5067,153.69,153.61,20.0]
[1723113230143,6.5067,153.69,153.6,20.0]
[1723113230367,6.5067,153.69,153.56,28.51]
[1723113230368,45.17,153.68,153.56,28.51]
[1723113230546,6.6777,153.67,153.56,28.51]
[1723113230863,45.0,153.66,153.56,28.51]
[1723113231367,0.17,153.67,153.56,28.51]
[1723113231568,45.17,153.68,153.56,28.51]
[1723113231944,6.639,153.66,153.57,20.0]
[1723113232152,6.639,153.66,153.55,49.7313]
[1723113232153,61.4247,153.65,153.55,49.7313]
[1723113232346,89.9347,153.65,153.52,10.18803409]
[1723113232549,28.51,153.59,153.49,16.2591]
[1723113232860,51.639,153.58,153.45,26.46687111]
[1723113233059,0.17,153.57,153.45,26.46687111]
[1723113233450,0.17,153.57,153.46,28.51]
[1723113234156,51.639,153.58,153.47,20.0]
[1723113234481,6.639,153.58,153.5,28.51]
[1723113234764,6.639,153.58,153.51,0.17]
[1723113235972,6.639,153.58,153.48,45.17]
[1723113236149,6.639,153.58,153.49,20.17]
[1723113237872,6.639,153.58,153.5,28.51]
[1723113238080,6.639,153.58,153.51,0.17]
[1723113238252,6.639,153.58,153.49,20.17]
[1723113240476,45.0,153.57,153.48,28.51]
[1723113240652,6.639,153.58,153.48,28.51]
[1723113241668,6.639,153.58,153.49,0.17]
[1723113241972,6.639,153.58,153.49,20.34]
[1723113244071,6.639,153.58,153.49,20.17]
[1723113245077,6.4883,153.62,153.5,28.51]
[1723113245274,6.4883,153.62,153.52,28.51]
[1723113245485,6.4883,153.62,153.53,0.17]
[1723113245680,28.51,153.61,153.51,0.17]
[1723113245976,28.51,153.61,153.45,26.46687111]
[1723113245977,6.5121,153.56,153.45,26.46687111]
[1723113246476,6.5121,153.56,153.44,34.652]
[1723113246477,6.1915,153.54,153.44,28.51]
[1723113246775,6.1915,153.54,153.44,38.72037553]
[1723113246974,6.1915,153.54,153.44,28.51]
[1723113247284,6.1915,153.54,153.44,38.72017812]
[1723113247784,6.1915,153.54,153.45,0.17]
[1723113248177,6.1915,153.54,153.45,20.0]
[1723113249058,6.1915,153.54,153.46,29.76588508]
[1723113249278,22.2049,153.58,153.47,20.0]
[1723113249463,22.2049,153.58,153.48,0.17]
[1723113249658,28.7163,153.58,153.48,0.17]
[1723113249885,6.5122,153.56,153.47,20.0]
[1723113250098,51.6818,153.57,153.46,0.17]
[1723113250286,45.17,153.57,153.46,0.17]
[1723113250597,45.17,153.57,153.46,28.68]
[1723113250767,50.7149,153.58,153.46,28.68]
[1723113251593,50.7149,153.58,153.47,65.17]
[1723113251792,50.7149,153.58,153.48,0.17]
[1723113251963,51.512,153.57,153.48,0.17]
[1723113252165,45.0,153.57,153.48,0.17]
[1723113252672,22.3749,153.58,153.48,0.17]
[1723113254394,22.2049,153.58,153.48,0.34]
[1723113254769,22.2049,153.58,153.48,0.17]
[1723113255089,6.5125,153.55,153.45,28.51]
[1723113255395,6.5125,153.55,153.46,20.0]
[1723113255574,6.5122,153.56,153.46,20.0]
[1723113255779,45.17,153.55,153.46,20.0]
[1723113256562,0.17,153.55,153.46,20.0]
[1723113256766,45.0,153.56,153.46,20.0]
[1723113256978,45.17,153.57,153.47,0.17]
[1723113257480,45.0,153.57,153.47,0.34]
[1723113257684,50.7149,153.58,153.47,0.34]
[1723113257897,50.7149,153.58,153.47,28.85]
[1723113258188,383.2,153.6,153.51,28.51]
[1723113258493,383.2,153.6,153.52,0.17]
[1723113258700,6.6005,153.62,153.55,28.51]
[1723113258904,23.1143,153.66,153.56,0.17]
[1723113259117,6.5087,153.64,153.55,28.51]
[1723113259400,28.51,153.63,153.5,28.51]
[1723113259690,28.51,153.63,153.51,20.17]
[1723113259992,28.51,153.61,153.51,20.17]
[1723113260203,28.51,153.61,153.51,0.17]
[1723113260393,28.51,153.61,153.5,48.85]
[1723113260593,28.51,153.61,153.5,20.0]
[1723113260895,6.5108,153.59,153.5,20.0]
[1723113261075,74.1272,153.58,153.46,28.51]
[1723113261278,67.616,153.58,153.45,16.0602]
[1723113261477,67.616,153.58,153.45,44.5702]
[1723113261790,22.446,153.58,153.47,28.51]
[1723113262303,22.446,153.58,153.48,20.0]
[1723113262811,22.494,153.62,153.5,28.51]
[1723113262968,22.494,153.62,153.52,28.51]
[1723113263167,22.494,153.62,153.53,0.17]
[1723113264072,22.494,153.62,153.53,20.34]
[1723113264907,22.494,153.62,153.53,20.17]
[1723113265277,22.494,153.62,153.54,0.17]
[1723113265681,22.494,153.62,153.54,28.68]
[1723113265982,22.494,153.62,153.55,0.17]
[1723113268586,22.494,153.62,153.54,28.51]
[1723113268811,22.494,153.62,153.53,20.0]
[1723113269118,29.0035,153.62,153.5,28.51]
[1723113269291,45.0,153.61,153.5,28.51]
[1723113269805,22.494,153.62,153.5,28.51]
[1723113269989,22.494,153.62,153.52,28.51]
[1723113270520,0.17,153.61,153.5,28.51]
[1723113270681,6.5104,153.6,153.51,20.0]
[1723113270882,51.68,153.61,153.51,20.0]
[1723113271193,45.17,153.61,153.51,20.0]
[1723113271390,51.004,153.62,153.51,20.0]
[1723113271805,51.004,153.62,153.52,0.34]
[1723113272411,22.494,153.62,153.52,28.85]
[1723113272802,22.494,153.62,153.54,28.51]
[1723113272987,6.5106,153.62,153.55,0.17]
[1723113273189,22.6128,153.66,153.55,20.34]
[1723113273802,22.6128,153.66,153.56,28.51]
[1723113274109,22.6128,153.66,153.57,0.34]
[1723113274282,22.6128,153.66,153.57,0.17]
[1723113277618,6.5086,153.65,153.57,0.17]
[1723113277919,28.51,153.64,153.52,28.51]
[1723113278120,28.51,153.64,153.5,6.3636]
[1723113278121,35.0196,153.62,153.5,34.8736]
[1723113278914,28.51,153.62,153.5,34.8736]
[1723113279306,51.5092,153.63,153.49,16.2317]
[1723113279307,28.51,153.6,153.49,16.2317]
[1723113279533,15.9648,153.58,153.49,16.2317]
[1723113279903,6.3173,153.59,153.5,28.51]
[1723113281026,6.3173,153.59,153.51,0.34]
[1723113281211,6.3173,153.59,153.51,20.34]
[1723113281610,6.3173,153.59,153.51,20.17]
[1723113283428,15.7055,153.62,153.52,28.68]
[1723113283667,15.7055,153.62,153.53,0.17]
[1723113284014,15.7055,153.62,153.54,28.51]
[1723113284204,15.7055,153.62,153.54,29.8121681]
[1723113284537,15.7055,153.62,153.55,0.17]
[1723113284837,6.6391,153.63,153.56,28.51]
[1723113285012,6.6391,153.63,153.57,0.17]
[1723113285518,6.6391,153.63,153.56,28.51]
[1723113285717,6.6391,153.63,153.55,0.17]
[1723113286018,6.6391,153.63,153.55,20.17]
[1723113286826,6.6391,153.63,153.55,20.0]
[1723113287022,6.6391,153.63,153.53,20.0]
[1723113287323,6.6391,153.63,153.54,0.17]
[1723113288230,13.1485,153.63,153.54,0.17]
[1723113288438,13.1485,153.63,153.5,28.51]
[1723113288439,73.68,153.62,153.5,28.51]
[1723113288607,73.85,153.62,153.51,0.17]
[1723113289122,80.3596,153.62,153.51,0.17]
[1723113289732,73.85,153.62,153.5,28.51]
[1723113290208,80.3595,153.62,153.5,28.51]
[1723113290639,73.68,153.62,153.5,28.51]
[1723113290821,28.51,153.62,153.5,28.51]
[1723113291309,28.51,153.62,153.51,20.34]
[1723113291511,35.0195,153.62,153.51,20.17]
[1723113292319,45.17,153.61,153.51,20.17]
[1723113292742,16.0202,153.6,153.51,20.0]
[1723113292952,45.17,153.59,153.51,20.0]
[1723113293940,34.8397,153.58,153.46,28.51]
[1723113294152,45.17,153.57,153.46,28.51]
[1723113295328,6.3297,153.58,153.48,28.51]
[1723113296247,6.3297,153.58,153.49,20.0]
[1723113296435,6.3297,153.58,153.49,20.17]
[1723113298159,16.0202,153.6,153.54,28.51]
[1723113298456,16.0202,153.6,153.56,28.51]
[1723113299030,16.0202,153.6,153.5,45.0]
[1723113299234,16.0202,153.6,153.51,20.17]
[1723113299545,16.0202,153.6,153.52,28.68]
[1723113299748,16.0202,153.6,153.53,0.17]
[1723113300247,16.0202,153.6,153.51,20.0]
[1723113301958,16.0202,153.6,153.54,28.51]
[1723113302133,6.4365,153.62,153.56,28.51]
[1723113302334,15.0185,153.64,153.58,28.51]
[1723113302554,6.2146,153.66,153.59,0.17]
[1723113302851,6.2146,153.66,153.6,28.51]
[1723113303051,6.2146,153.66,153.61,0.17]
[1723113304875,15.0185,153.68,153.62,28.51]
[1723113305647,15.0185,153.68,153.63,20.17]
[1723113306183,6.4947,153.71,153.63,20.17]
[1723113307760,6.4947,153.71,153.64,28.51]
[1723113307945,6.4947,153.71,153.65,0.17]
[1723113308658,16.3127,153.72,153.66,28.51]
[1723113308863,15.688,153.77,153.7,28.51]
[1723113309067,411.71,153.83,153.7,28.51]
[1723113309068,6.4847,153.79,153.71,0.17]
[1723113309250,6.4847,153.79,153.72,28.51]
[1723113311374,6.4847,153.79,153.71,0.17]
[1723113311674,6.4847,153.79,153.71,20.17]
[1723113311854,6.4847,153.79,153.72,28.51]
[1723113312042,6.4847,153.79,153.73,20.17]
[1723113312240,15.688,153.81,153.74,28.51]
[1723113312552,15.688,153.81,153.75,0.17]
[1723113312958,15.688,153.81,153.75,21.47017419]
[1723113313158,15.688,153.81,153.75,20.17]
[1723113313360,6.6341,153.83,153.75,20.17]
[1723113314068,6.6341,153.83,153.76,1.29936709]
[1723113314243,6.6341,153.83,153.77,0.17]
[1723113314445,6.6341,153.83,153.77,20.34]
[1723113314953,6.6341,153.83,153.77,20.17]
[1723113316273,6.6341,153.83,153.77,20.0]
[1723113316654,6.6341,153.83,153.74,28.51]
[1723113316972,0.17,153.82,153.72,28.51]
[1723113317153,45.17,153.82,153.72,28.51]
[1723113317969,35.1816,153.81,153.7,28.51]
[1723113318157,45.0,153.8,153.69,16.4492]
[1723113318467,6.602,153.77,153.66,28.51]
[1723113318660,45.17,153.76,153.66,28.51]
[1723113318865,45.0,153.76,153.66,28.51]
[1723113319645,45.0,153.76,153.64,15.7031]
[1723113320062,6.602,153.77,153.65,21.30112319]
[1723113320275,6.602,153.77,153.65,20.0]
[1723113320671,6.602,153.77,153.65,21.30103031]
[1723113320880,6.602,153.77,153.66,0.17]
[1723113321056,6.602,153.77,153.66,0.34]
[1723113321474,6.602,153.77,153.66,1.6408639]
[1723113321683,6.602,153.77,153.66,46.6408639]
[1723113321860,6.602,153.77,153.67,20.0]
[1723113322063,6.602,153.77,153.68,0.34]
[1723113322259,45.0,153.76,153.64,15.7031]
[1723113322565,45.0,153.76,153.56,6.525]
[1723113322566,51.5037,153.76,153.62,18.9025221]
[1723113322774,45.0,153.76,153.62,18.9025221]
[1723113323276,45.0,153.76,153.63,1.30131938]
[1723113323580,45.0,153.76,153.62,18.9025221]
[1723113323581,45.0,153.76,153.62,20.2037816]
[1723113324289,45.0,153.76,153.63,65.0]
[1723113324582,45.0,153.76,153.64,0.17]
[1723113326168,51.5038,153.76,153.64,0.17]
[1723113326375,0.34,153.75,153.64,0.17]
[1723113326557,22.5672,153.74,153.62,18.9025221]
[1723113326758,45.34,153.73,153.62,18.9025221]
[1723113326964,45.0,153.73,153.62,18.9025221]
[1723113327163,22.5672,153.74,153.62,18.9025221]
[1723113327771,22.5672,153.74,153.63,45.0]
[1723113327990,22.5672,153.74,153.64,0.17]
[1723113328195,22.5672,153.74,153.64,20.17]
[1723113328387,22.5672,153.74,153.65,0.17]
[1723113329364,22.371,153.79,153.68,36.62]
[1723113329564,22.371,153.79,153.69,20.34]
[1723113330668,22.371,153.79,153.7,0.91525295]
[1723113330888,22.371,153.79,153.69,20.34]
[1723113331685,22.371,153.79,153.7,1.26179902]
[1723113331875,6.5506,153.79,153.71,38.22171693]
[1723113332075,6.5506,153.79,153.72,20.0]
[1723113332278,6.5506,153.79,153.73,1.60155278]
[1723113332483,6.5506,153.79,153.74,1.2616346]
[1723113332789,6.5506,153.79,153.75,0.34]
[1723113332999,6.5506,153.79,153.73,0.34]
[1723113333168,16.2477,153.83,153.73,45.34]
[1723113333169,22.8265,153.83,153.73,45.34]
[1723113333582,22.8265,153.83,153.74,20.0]
[1723113333783,22.8265,153.83,153.75,45.34]
[1723113333990,22.8265,153.83,153.76,20.0]
[1723113334191,22.8265,153.83,153.77,0.34]
[1723113334687,16.3967,153.87,153.77,0.34]
[1723113334889,23.0069,153.87,153.77,45.34]
[1723113335198,23.0069,153.87,153.78,20.0]
[1723113335898,23.0069,153.87,153.77,0.34]
[1723113336990,29.5061,153.87,153.77,0.34]
[1723113337306,45.0,153.86,153.76,20.0]
[1723113337470,6.4999,153.85,153.71,43.73243858]
[1723113337671,6.4999,153.85,153.71,36.62]
[1723113337672,45.0,153.84,153.71,36.62]
[1723113337870,6.4191,153.83,153.71,36.62]
[1723113338484,6.4191,153.83,153.72,1.47058196]
[1723113338803,6.4191,153.83,153.72,45.17]
[1723113338983,6.4191,153.83,153.73,20.0]
[1723113339179,16.5698,153.82,153.74,0.17]
[1723113339380,16.5698,153.82,153.73,0.17]
[1723113339983,16.5698,153.82,153.75,28.46]
[1723113340504,16.5698,153.82,153.73,28.46]
[1723113341404,16.5698,153.82,153.74,0.34]
[1723113343612,16.5698,153.82,153.73,28.46]
[1723113344202,16.5698,153.82,153.72,0.34]
[1723113344400,16.5698,153.82,153.72,20.34]
[1723113344593,23.0709,153.82,153.72,20.34]
[1723113344791,45.0,153.81,153.72,20.34]
[1723113345512,45.0,153.81,153.72,20.0]
[1723113345808,45.0,153.81,153.69,28.46]
[1723113346510,45.0,153.81,153.71,28.46]
[1723113347014,45.0,153.81,153.72,0.34]
[1723113347902,51.5015,153.81,153.71,28.46]
[1723113350116,16.5698,153.82,153.71,28.46]
[1723113350296,16.5698,153.82,153.72,0.34]
[1723113350617,23.0709,153.82,153.72,0.34]
[1723113350914,16.5698,153.82,153.72,0.34]
[1723113351117,16.5698,153.82,153.72,20.34]
[1723113353587,16.5698,153.82,153.75,28.46]
[1723113353785,16.5698,153.82,153.76,0.34]
[1723113355103,16.5698,153.82,153.72,36.3331]
[1723113355104,16.5698,153.82,153.73,28.46]
[1723113355305,6.5016,153.81,153.71,28.46]
[1723113355511,23.071,153.82,153.71,28.46]
[1723113356504,16.5698,153.82,153.72,0.17]
[1723113356826,16.5698,153.82,153.72,0.34]
[1723113357129,16.5698,153.82,153.72,20.34]
[1723113357316,23.071,153.82,153.72,20.34]
[1723113357514,16.5698,153.82,153.72,20.34]
[1723113360734,23.071,153.82,153.71,28.46]
[1723113360914,45.0,153.81,153.71,28.46]
[1723113361114,16.5698,153.82,153.71,28.46]
[1723113361828,16.5698,153.82,153.72,20.17]
[1723113362034,16.5698,153.82,153.73,0.17]
[1723113362737,16.5698,153.82,153.73,28.63]
[1723113362910,16.5698,153.82,153.74,0.17]
[1723113363111,16.5698,153.82,153.73,28.63]
[1723113363734,6.5022,153.8,153.72,20.0]
[1723113363933,45.17,153.81,153.69,28.46]
[1723113364137,6.5033,153.77,153.67,28.46]
[1723113364332,45.0,153.76,153.67,28.46]
[1723113364530,6.0914,153.75,153.65,28.46]
[1723113364708,15.6025,153.74,153.65,28.46]
[1723113364912,15.6025,153.74,153.63,28.46]
[1723113365206,45.0,153.73,153.63,28.46]
[1723113366242,45.0,153.73,153.64,0.34]
[1723113366729,15.6025,153.74,153.65,28.46]
[1723113367118,45.0,153.73,153.64,0.34]
[1723113367515,15.6025,153.74,153.65,28.46]
[1723113367720,15.6025,153.74,153.66,0.34]
[1723113367917,15.6025,153.74,153.67,28.46]
[1723113368120,15.6025,153.74,153.68,0.34]
[1723113368434,21.8663,153.79,153.69,28.46]
[1723113368747,21.8663,153.79,153.68,21.64065196]
[1723113368748,21.8663,153.79,153.71,28.46]
[1723113370725,21.8663,153.79,153.71,29.76054589]
[1723113371533,6.5494,153.79,153.73,28.46]
[1723113371716,6.5494,153.79,153.75,28.46]
[1723113372234,6.5494,153.79,153.71,28.46]
[1723113372414,6.5494,153.79,153.72,20.0]
[1723113372938,6.5494,153.79,153.73,0.17]
[1723113373137,6.5494,153.79,153.73,1.47042281]
[1723113373325,6.5494,153.79,153.74,0.17]
[1723113373525,6.5494,153.79,153.74,1.4705393]
[1723113373731,6.5494,153.79,153.75,0.17]
[1723113373932,22.3986,153.83,153.75,28.63]
[1723113374130,22.3986,153.83,153.76,1.47036196]
[1723113374436,22.3986,153.83,153.76,0.17]
[1723113374939,22.3986,153.83,153.76,20.17]
[1723113375337,22.3986,153.83,153.79,28.46]
[1723113375549,21.763,153.87,153.81,28.46]
[1723113375724,21.763,153.87,153.82,1.29984098]
[1723113376043,21.763,153.87,153.77,28.46]
[1723113376231,21.763,153.87,153.78,20.34]
[1723113376437,21.763,153.87,153.78,20.17]
[1723113376657,21.763,153.87,153.73,2.59349998]
[1723113376658,28.46,153.86,153.73,28.46]
[1723113376823,6.5002,153.84,153.74,0.34]
[1723113377018,6.5002,153.84,153.74,0.17]
[1723113377337,45.0,153.85,153.74,0.17]
[1723113377646,21.763,153.87,153.75,28.46]
[1723113377830,45.0,153.86,153.76,0.17]
[1723113378019,45.0,153.86,153.76,1.47028629]
[1723113378344,45.0,153.86,153.77,0.17]
[1723113379238,21.763,153.87,153.77,28.63]
[1723113379416,21.763,153.87,153.78,0.17]
[1723113380244,21.763,153.87,153.79,28.46]
[1723113380452,21.763,153.87,153.8,0.34]
[1723113380656,21.763,153.87,153.8,1.6397104]
[1723113380941,21.763,153.87,153.8,20.34]
[1723113383935,21.763,153.87,153.76,28.46]
[1723113384132,45.0,153.86,153.77,0.17]
[1723113385446,45.0,153.86,153.77,20.34]
[1723113385663,21.763,153.87,153.77,20.34]
[1723113386148,45.0,153.86,153.77,20.34]
[1723113386865,28.46,153.84,153.72,28.46]
[1723113387024,15.7234,153.82,153.7,28.46]
[1723113387844,15.7234,153.82,153.68,44.03202352]
[1723113387845,28.46,153.8,153.68,44.03202352]
[1723113388157,15.9796,153.73,153.64,28.46]
[1723113388343,15.9796,153.73,153.62,28.46]
[1723113388651,15.9796,153.73,153.66,28.46]
[1723113389258,15.9796,153.73,153.64,28.46]
[1723113389942,15.9796,153.73,153.65,0.17]
[1723113390131,15.9796,153.73,153.64,28.46]
[1723113390648,15.9796,153.73,153.65,20.0]
[1723113390955,15.9796,153.73,153.64,28.46]
[1723113391448,15.9796,153.73,153.65,0.34]
[1723113392250,15.9796,153.73,153.65,20.34]
[1723113395752,15.9796,153.73,153.6,43.39036158]
[1723113395753,6.5057,153.71,153.6,43.39036158]
[1723113395933,35.2869,153.72,153.6,43.39036158]
[1723113396134,45.0,153.71,153.6,43.39036158]
[1723113396560,28.46,153.7,153.6,14.93036158]
[1723113396729,45.0,153.69,153.6,14.93036158]
[1723113397744,28.46,153.7,153.6,14.93036158]
[1723113398257,45.0,153.69,153.6,14.93036158]
[1723113398839,28.46,153.66,153.6,14.93036158]
[1723113399038,21.6255,153.68,153.54,50.1784]
[1723113399239,45.0,153.67,153.54,50.1784]
[1723113399444,45.0,153.67,153.56,28.46]
[1723113399753,50.0855,153.68,153.56,28.46]
[1723113400055,6.5078,153.66,153.53,22.04960747]
[1723113400369,45.0,153.65,153.56,28.46]
[1723113400665,383.2,153.66,153.58,28.46]
[1723113401229,383.2,153.66,153.6,28.46]
[1723113401545,21.6255,153.68,153.61,0.34]
[1723113401854,21.6255,153.68,153.6,28.46]
[1723113402059,21.6255,153.68,153.58,28.46]
[1723113402358,21.6255,153.68,153.6,28.46]
[1723113402525,21.6255,153.68,153.61,0.34]
[1723113402726,21.6255,153.68,153.62,28.46]
[1723113402933,260.7,153.71,153.64,28.46]
[1723113403176,15.6006,153.72,153.65,0.34]
[1723113403457,15.6006,153.72,153.62,28.46]
[1723113403659,15.6006,153.72,153.63,20.17]
[1723113403835,28.46,153.71,153.61,20.0]
[1723113404039,6.5062,153.7,153.61,20.0]
[1723113404233,51.5066,153.69,153.6,0.17]
[1723113404443,51.5066,153.69,153.59,20.0]
[1723113404643,45.0,153.69,153.59,20.0]
[1723113404846,45.0,153.7,153.59,20.0]
[1723113405246,51.5062,153.7,153.59,20.0]
[1723113405439,45.0,153.7,153.59,20.0]
[1723113406138,45.0,153.7,153.6,0.34]
[1723113406340,28.8,153.69,153.59,20.0]
[1723113406563,6.3133,153.67,153.59,20.0]
[1723113406739,45.0,153.66,153.58,20.0]
[1723113406941,45.0,153.66,153.57,14.93327824]
[1723113408239,45.0,153.66,153.58,20.0]
[1723113409163,6.3133,153.67,153.58,20.0]
[1723113409361,45.0,153.66,153.58,20.0]
[1723113410751,45.0,153.66,153.57,14.93327824]
[1723113411742,16.632,153.65,153.57,14.93327824]
[1723113412054,6.5087,153.64,153.52,28.46]
[1723113412257,28.46,153.63,153.52,28.46]
[1723113412579,45.0,153.62,153.52,28.46]
[1723113413266,28.46,153.63,153.52,28.46]
[1723113413461,434.8004,153.65,153.52,28.46]
[1723113413672,51.6788,153.64,153.53,0.17]
[1723113413966,6.5091,153.63,153.53,20.0]
[1723113414169,45.0,153.62,153.53,20.0]
[1723113414463,45.0,153.64,153.53,20.0]
[1723113414767,428.292,153.65,153.54,28.46]
[1723113414945,428.292,153.65,153.55,20.0]
[1723113415154,428.292,153.65,153.56,0.17]
[1723113415359,399.832,153.65,153.56,0.34]
[1723113417088,16.632,153.65,153.56,0.34]